bitfinex/quotes_SOLUSD_20240708
["timestamp","ask_amount","ask_price","bid_price","bid_amount"]
[1720442021905,21.41303195,141.06,140.97,6.6457]
[1720442022195,7.0897,141.05,140.99,7.0925]
[1720442022992,7.0897,141.05,140.99,24.824]
[1720442023199,20.0,141.06,140.97,13.7392]
[1720442023388,7.0915,141.02,140.97,6.6457]
[1720442023588,7.0908,141.03,140.97,13.7393]
[1720442023807,7.0903,141.04,140.98,7.093]
[1720442024108,21.41303195,141.05,140.99,7.0922]
[1720442024400,8.50303195,141.05,140.99,7.0922]
[1720442024918,8.50303195,141.05,141.0,1.41361104]
[1720442025101,7.09,141.05,141.0,1.41361104]
[1720442025279,37.7221,141.07,140.98,24.8255]
[1720442025482,7.0908,141.03,140.98,24.8255]
[1720442025804,7.0908,141.03,140.98,17.7325]
[1720442025999,1.41303195,141.02,140.97,6.4757]
[1720442026311,7.0932,140.98,140.97,6.4757]
[1720442026482,7.0932,140.98,140.94,6.508]
[1720442026688,7.0928,140.99,140.94,13.6032]
[1720442026990,7.0927,140.99,140.94,13.6032]
[1720442027482,7.094,140.97,140.94,6.508]
[1720442027682,7.0933,140.98,140.94,6.508]
[1720442027882,17.73,141.01,140.94,6.508]
[1720442027883,7.0928,140.99,140.94,6.508]
[1720442028080,8.50543195,141.0,140.94,13.6031]
[1720442028303,33.91,141.03,140.94,13.6031]
[1720442028304,7.0918,141.01,140.94,6.508]
[1720442028613,6.648,141.09,140.94,6.508]
[1720442028614,17.7227,141.07,140.97,7.0936]
[1720442028782,7.091,141.03,140.97,7.0936]
[1720442028983,28.50433195,141.02,140.96,24.8291]
[1720442029184,7.0923,141.0,140.95,0.17]
[1720442029397,7.0923,141.0,140.94,13.6029]
[1720442029622,7.0923,141.0,140.95,7.0947]
[1720442029979,1.41303195,141.02,140.96,7.0939]
[1720442029980,8.50453195,141.02,140.96,7.0939]
[1720442030406,7.0917,141.01,140.96,7.0939]
[1720442030583,7.0917,141.01,140.95,17.7364]
[1720442030584,7.0924,141.0,140.95,24.831]
[1720442030781,7.0924,141.0,140.95,17.7364]
[1720442031193,7.0936,140.98,140.94,6.508]
[1720442031391,7.0927,140.99,140.94,6.508]
[1720442031684,7.0925,141.0,140.94,13.6031]
[1720442031884,1.41303195,140.99,140.94,13.6031]
[1720442032191,7.0932,140.98,140.94,6.508]
[1720442032610,7.0928,140.99,140.94,6.508]
[1720442032797,7.0928,140.99,140.94,13.603]
[1720442033009,7.0928,140.99,140.94,6.508]
[1720442033206,7.0923,141.0,140.94,24.2458]
[1720442033524,7.0923,141.0,140.95,7.0946]
[1720442033525,1.41303195,140.99,140.95,7.0946]
[1720442034219,1.41303195,140.99,140.94,6.508]
[1720442034403,7.0938,140.97,140.94,6.508]
[1720442034919,7.0942,140.96,140.94,6.508]
[1720442035135,7.0943,140.96,140.94,6.508]
[1720442035433,6.5943,140.96,140.94,6.508]
[1720442035924,8.50633195,140.98,140.94,6.508]
[1720442036126,1.41303195,141.01,140.94,24.2459]
[1720442036296,8.50483195,141.01,140.94,24.2459]
[1720442036603,7.0912,141.02,140.96,7.0938]
[1720442036804,20.0,141.01,140.96,7.0938]
[1720442037238,21.41303195,141.01,140.95,7.0945]
[1720442037527,1.41303195,141.0,140.94,13.603]
[1720442037725,7.0922,141.0,140.94,13.603]
[1720442038050,21.41303195,140.99,140.94,6.508]
[1720442038202,1.41303195,140.99,140.94,6.508]
[1720442038397,20.0,141.0,140.94,6.508]
[1720442038912,7.0912,141.02,140.97,7.0936]
[1720442039529,7.0912,141.02,140.96,24.8292]
[1720442039900,7.0908,141.03,140.97,7.0936]
[1720442040408,0.2,141.09,141.02,6.669]
[1720442040925,7.0891,141.06,141.02,6.669]
[1720442041105,7.091,141.03,140.98,6.669]
[1720442041422,1.41303195,141.05,140.98,6.669]
[1720442041607,7.0912,141.02,140.98,6.669]
[1720442041804,1.41303195,141.04,140.98,6.669]
[1720442042004,7.091,141.03,140.98,6.669]
[1720442042205,7.0912,141.02,140.98,6.669]
[1720442042895,1.41303195,141.06,140.98,6.669]
[1720442043095,7.0907,141.03,140.98,24.4016]
[1720442043816,1.41303195,141.06,140.98,24.4016]
[1720442044005,7.0896,141.06,140.98,24.4016]
[1720442044212,20.0,141.05,141.0,7.0918]
[1720442044420,7.0895,141.06,141.01,7.0916]
[1720442044819,7.0895,141.06,141.0,24.8222]
[1720442045126,8.50273195,141.05,141.0,17.7302]
[1720442045424,8.50273195,141.05,140.98,6.669]
[1720442045425,1.41303195,141.05,140.98,6.669]
[1720442045726,7.0908,141.03,140.98,6.669]
[1720442046600,7.0903,141.04,140.98,13.762]
[1720442047312,7.0917,141.01,140.98,6.669]
[1720442047518,7.092,141.01,140.98,6.669]
[1720442048025,8.50503195,141.01,140.98,6.669]
[1720442048523,7.0931,140.99,140.95,6.4029]
[1720442048727,7.0932,140.98,140.95,6.4029]
[1720442049223,7.0942,140.96,140.92,15.6244]
[1720442049419,8.50683195,140.97,140.92,15.6244]
[1720442049602,7.0934,140.98,140.92,22.7205]
[1720442049797,7.0934,140.98,140.93,7.0957]
[1720442050002,7.0927,140.99,140.94,7.0951]
[1720442050218,21.41303195,140.98,140.92,15.6244]
[1720442050523,21.41303195,140.98,140.92,33.3643]
[1720442050524,20.0,140.98,140.92,33.3643]
[1720442050722,20.0,140.98,140.93,7.0953]
[1720442051226,20.0,140.98,140.93,7.0952]
[1720442051605,20.0,140.98,140.94,7.095]
[1720442051814,1.41303195,141.01,140.94,17.7379]
[1720442052017,7.0923,141.0,140.94,24.8328]
[1720442052208,7.0935,140.98,140.92,22.7205]
[1720442052615,20.0,140.99,140.94,7.0949]
[1720442052827,7.0923,141.0,140.94,7.0949]
[1720442053031,20.0,140.99,140.94,7.0949]
[1720442053917,7.0933,140.98,140.93,24.8348]
[1720442054833,7.0933,140.98,140.93,17.7392]
[1720442055335,1.41303195,140.98,140.92,15.6244]
[1720442055529,7.0947,140.95,140.92,15.6244]
[1720442056733,1.41303195,140.98,140.92,15.6244]
[1720442056932,8.50643195,140.98,140.92,22.7205]
[1720442057230,20.0,140.99,140.94,7.0952]
[1720442057415,27.0927,140.99,140.94,7.0952]
[1720442058033,20.0,140.99,140.95,7.0944]
[1720442058335,1.41303195,141.01,140.94,24.8329]
[1720442058530,7.0924,141.0,140.94,24.8329]
[1720442059638,1.41303195,141.01,140.95,7.0946]
[1720442059842,8.50473195,141.01,140.95,7.0946]
[1720442060038,7.0917,141.01,140.96,7.0941]
[1720442060212,1.41303195,141.0,140.94,24.8327]
[1720442060417,1.41303195,141.04,140.94,24.8327]
[1720442060619,7.0927,140.99,140.94,17.7379]
[1720442060822,7.0927,140.99,140.94,24.833]
[1720442061526,7.0923,141.0,140.94,24.833]
[1720442062041,7.0927,140.99,140.94,17.7379]
[1720442062349,17.7284,141.02,140.92,22.7205]
[1720442062531,21.41303195,141.01,140.92,22.7205]
[1720442062737,7.0939,140.97,140.92,15.6244]
[1720442063616,7.0933,140.98,140.92,22.7205]
[1720442063820,7.0933,140.98,140.93,7.0956]
[1720442064220,8.50673195,140.97,140.92,22.7205]
[1720442064421,1.41303195,140.97,140.92,15.6244]
[1720442064621,7.0943,140.96,140.92,15.6244]
[1720442064823,17.7331,140.98,140.91,6.315]
[1720442065023,7.0952,140.94,140.91,6.315]
[1720442065324,7.0952,140.94,140.89,7.0974]
[1720442065525,7.0948,140.95,140.9,7.0971]
[1720442066229,8.50683195,140.97,140.91,7.0966]
[1720442066429,20.0,140.96,140.92,7.0962]
[1720442067460,20.0,140.96,140.91,7.0965]
[1720442067743,7.0949,140.95,140.9,17.7428]
[1720442067949,7.0952,140.94,140.9,17.7428]
[1720442068248,7.0952,140.94,140.89,7.2673]
[1720442068549,7.0949,140.95,140.89,7.0973]
[1720442068730,7.0949,140.95,140.89,24.8416]
[1720442068935,7.0949,140.95,140.9,7.0971]
[1720442069134,7.0944,140.96,140.9,7.0971]
[1720442069333,7.0947,140.95,140.9,7.0971]
[1720442069538,7.0947,140.95,140.89,17.7443]
[1720442069733,1.41303195,140.98,140.88,22.1076]
[1720442069933,7.0929,140.99,140.93,24.8343]
[1720442070127,7.0922,141.0,140.94,7.095]
[1720442070451,7.0933,140.98,140.93,17.7389]
[1720442070948,7.0933,140.98,140.92,7.0961]
[1720442070949,7.0937,140.97,140.91,7.0966]
[1720442071244,59.64364369,141.03,140.9,24.8393]
[1720442071245,7.0947,140.95,140.9,24.8393]
[1720442071446,7.0943,140.96,140.9,24.8393]
[1720442071665,17.7331,140.98,140.88,22.1076]
[1720442071837,7.0958,140.93,140.88,22.1076]
[1720442072032,7.0953,140.94,140.88,29.2055]
[1720442072461,1.41303195,140.93,140.88,22.1076]
[1720442072630,7.0969,140.91,140.86,17.7476]
[1720442072831,7.0969,140.91,140.86,24.8468]
[1720442073336,7.0969,140.91,140.86,17.7476]
[1720442073530,7.0969,140.91,140.86,24.8468]
[1720442073737,7.0963,140.92,140.86,24.8468]
[1720442073928,1.41303195,140.91,140.86,24.8468]
[1720442075528,7.0963,140.92,140.86,24.8468]
[1720442075749,8.50973195,140.91,140.86,24.8468]
[1720442076341,8.50833195,140.94,140.86,17.7476]
[1720442076530,27.0957,140.93,140.87,7.0984]
[1720442076725,7.0957,140.93,140.87,7.0984]
[1720442077835,7.0957,140.93,140.88,7.0981]
[1720442078152,28.50813195,140.95,140.89,7.0976]
[1720442078351,27.0947,140.95,140.89,7.0975]
[1720442078537,7.0952,140.94,140.89,7.0975]
[1720442078862,20.0,140.95,140.89,7.0972]
[1720442079154,7.0952,140.94,140.88,7.098]
[1720442079552,7.0958,140.93,140.87,25.0143]
[1720442079751,1.41303195,140.97,140.87,0.17]
[1720442079947,17.7371,140.95,140.85,30.3277]
[1720442080148,21.41303195,140.94,140.85,30.3277]
[1720442080347,7.0968,140.91,140.85,30.3277]
[1720442080543,8.50893195,140.93,140.85,23.2281]
[1720442080754,8.50893195,140.93,140.88,7.0981]
[1720442080951,20.0,140.94,140.85,23.2281]
[1720442081137,21.41303195,140.95,140.88,7.0979]
[1720442081340,1.41303195,140.95,140.87,7.0985]
[1720442081530,7.0965,140.92,140.86,7.0991]
[1720442082054,7.0965,140.92,140.87,7.0986]
[1720442082258,7.0958,140.93,140.87,7.0986]
[1720442082465,7.0962,140.92,140.87,7.0986]
[1720442083954,1.41303195,140.91,140.85,41.1464]
[1720442084159,21.41303195,140.93,140.85,41.1464]
[1720442084460,7.0967,140.91,140.85,48.2456]
[1720442084640,7.0967,140.91,140.86,7.0991]
[1720442084840,8.50943195,140.92,140.86,7.0991]
[1720442085955,20.0,140.93,140.87,17.7466]
[1720442086255,20.0,140.93,140.89,7.0977]
[1720442086459,27.0957,140.93,140.88,7.0978]
[1720442086636,27.0957,140.93,140.85,23.2281]
[1720442086637,21.41303195,140.93,140.85,23.2281]
[1720442086836,21.41303195,140.93,140.86,0.17]
[1720442087049,7.0968,140.91,140.86,0.17]
[1720442087358,7.0968,140.91,140.86,7.2691]
[1720442087760,7.0964,140.92,140.86,7.2691]
[1720442088360,27.0958,140.93,140.87,7.0987]
[1720442088659,27.0958,140.93,140.88,7.0981]
[1720442088961,27.0958,140.93,140.86,0.17]
[1720442088962,20.0,140.93,140.89,7.0976]
[1720442089179,7.0952,140.94,140.89,7.0976]
[1720442089349,7.0948,140.95,140.89,7.0976]
[1720442089666,7.0948,140.95,140.89,24.8419]
[1720442089861,7.0948,140.95,140.9,7.2671]
[1720442090462,7.0948,140.95,140.9,0.17]
[1720442090663,7.0953,140.94,140.9,0.17]
[1720442090845,7.0953,140.94,140.89,17.7443]
[1720442092168,19.14613195,140.98,140.88,7.2681]
[1720442092372,21.58303195,140.97,140.85,23.2281]
[1720442092743,7.0975,140.9,140.85,40.9773]
[1720442093064,7.0963,140.92,140.87,7.0987]
[1720442093360,39.31823195,140.97,140.87,7.0987]
[1720442094761,7.0962,140.92,140.87,7.0987]
[1720442095262,7.0967,140.91,140.86,7.269]
[1720442095467,7.0973,140.9,140.85,48.0768]
[1720442095769,17.7396,140.93,140.85,40.9773]
[1720442096060,7.0977,140.89,140.85,40.9773]
[1720442096644,7.0973,140.9,140.85,40.9773]
[1720442098847,7.0973,140.9,140.85,48.0769]
[1720442099857,7.0992,140.86,140.82,6.5185]
[1720442100061,1.41303195,140.85,140.81,15.5244]
[1720442100266,7.1011,140.83,140.78,22.0429]
[1720442100575,7.1011,140.83,140.78,29.1461]
[1720442100761,7.1011,140.83,140.78,22.0429]
[1720442101347,8.51233195,140.86,140.79,17.7567]
[1720442101658,20.0,140.88,140.81,17.7542]
[1720442101962,8.51113195,140.89,140.83,7.1004]
[1720442102180,20.0,140.88,140.81,17.7542]
[1720442102341,7.0993,140.86,140.81,17.7542]
[1720442102545,7.0993,140.86,140.81,24.8558]
[1720442102768,7.0989,140.87,140.81,24.8558]
[1720442102962,7.0993,140.86,140.81,24.8558]
[1720442103564,1.41303195,140.87,140.8,0.17]
[1720442103766,1.41303195,140.87,140.79,7.1026]
[1720442104206,7.1006,140.84,140.78,29.316]
[1720442104365,7.1006,140.84,140.79,7.1027]
[1720442104667,7.1006,140.84,140.78,22.0429]
[1720442104880,7.0994,140.86,140.8,7.1021]
[1720442105248,1.41303195,140.87,140.83,7.1006]
[1720442105469,60.9984,140.88,140.78,22.0429]
[1720442105470,20.0,140.88,140.78,22.0429]
[1720442105676,21.41303195,140.9,140.78,22.0429]
[1720442105852,7.0991,140.87,140.82,17.7527]
[1720442106053,20.0,140.86,140.82,17.7527]
[1720442106358,27.0992,140.86,140.82,17.7527]
[1720442106556,20.0,140.86,140.79,17.7561]
[1720442106755,1.41303195,140.85,140.79,17.7561]
[1720442106956,7.0998,140.85,140.79,24.8584]
[1720442107371,8.51223195,140.87,140.79,17.7561]
[1720442107568,7.0992,140.87,140.81,7.1017]
[1720442108570,7.0995,140.86,140.8,7.272]
[1720442109351,7.0995,140.86,140.81,7.1015]
[1720442109778,1.41303195,140.9,140.8,0.17]
[1720442109959,1.41303195,140.92,140.85,7.0997]
[1720442110274,7.0974,140.9,140.85,7.0997]
[1720442111158,1.41303195,140.92,140.86,7.0991]
[1720442111470,1.41303195,140.92,140.85,16.5398]
[1720442111471,4.91373583,140.95,140.85,16.5398]
[1720442111731,4.91373583,140.95,140.88,7.0977]
[1720442111732,7.0952,140.94,140.88,7.0977]
[1720442111980,7.0952,140.94,140.89,7.0977]
[1720442112168,7.0952,140.94,140.88,7.098]
[1720442112354,1.41303195,140.95,140.87,7.0985]
[1720442112556,17.7351,140.97,140.88,0.17]
[1720442112557,1.41303195,140.96,140.88,0.17]
[1720442112750,7.0958,140.93,140.88,0.17]
[1720442113358,1.41303195,140.95,140.85,16.5398]
[1720442113571,7.0971,140.91,140.86,7.0991]
[1720442114061,7.0971,140.91,140.87,0.37959323]
[1720442114271,7.0983,140.88,140.85,16.7098]
[1720442114451,20.0,140.97,140.84,6.2646]
[1720442114452,7.0992,140.86,140.84,6.2646]
[1720442114777,7.0989,140.87,140.81,30.4036]
[1720442114989,7.0984,140.88,140.82,7.1011]
[1720442115280,7.0984,140.88,140.81,23.3022]
[1720442115281,1.41303195,140.9,140.81,30.4039]
[1720442115477,1.41303195,140.89,140.81,30.4039]
[1720442115684,7.0989,140.87,140.82,7.1012]
[1720442115893,7.0984,140.88,140.82,7.1012]
[1720442116275,7.0988,140.87,140.82,7.1012]
[1720442116776,7.0988,140.87,140.81,30.4037]
[1720442117287,7.0988,140.87,140.82,7.2711]
[1720442119264,7.0983,140.88,140.83,7.1005]
[1720442119466,16.5007,140.92,140.82,17.9231]
[1720442119467,1.41303195,140.93,140.86,17.7476]
[1720442120074,7.0968,140.91,140.86,24.8465]
[1720442120282,16.9638,140.96,140.87,0.17]
[1720442120467,1.41303195,140.95,140.88,24.8435]
[1720442120780,7.096,140.93,140.88,17.7455]
[1720442121287,7.0963,140.92,140.87,13.3055]
[1720442121484,7.0963,140.92,140.87,6.207]
[1720442121708,7.0968,140.91,140.87,6.207]
[1720442121987,7.0963,140.92,140.87,13.3057]
[1720442122296,1.41303195,140.95,140.91,7.0963]
[1720442122491,1.41303195,140.99,140.88,17.0492]
[1720442122673,7.0932,140.98,140.93,7.0954]
[1720442122873,7.0932,140.98,140.92,7.096]
[1720442123475,1.41303195,141.01,140.91,25.0082]
[1720442123811,7.0945,140.96,140.91,17.9115]
[1720442124300,7.0938,140.97,140.91,25.0082]
[1720442127101,7.0933,140.98,140.92,7.0961]
[1720442127985,21.41303195,140.97,140.88,34.6238]
[1720442128187,7.096,140.93,140.88,34.6238]
[1720442128522,21.41303195,140.97,140.88,16.8792]
[1720442128810,7.0945,140.96,140.9,7.097]
[1720442128980,20.0,140.97,140.92,7.0959]
[1720442129384,27.0939,140.97,140.92,7.0959]
[1720442129580,20.0,140.97,140.92,7.0959]
[1720442130191,27.0937,140.97,140.92,7.0959]
[1720442130699,7.0942,140.96,140.91,24.8377]
[1720442131107,27.0939,140.97,140.91,17.7412]
[1720442131290,20.0,140.97,140.92,7.266]
[1720442131711,7.0933,140.98,140.92,7.266]
[1720442132197,20.0,140.97,140.92,7.266]
[1720442132601,51.6307,141.0,140.92,7.266]
[1720442132602,25.03141035,141.04,140.95,6.3372]
[1720442132803,6.1476,141.07,140.95,6.3372]
[1720442132804,1.41303195,141.03,140.97,17.7336]
[1720442132989,7.092,141.01,140.96,18.26441311]
[1720442133304,33.9,141.06,140.96,18.26441311]
[1720442133305,7.0911,141.03,140.96,25.35851311]
[1720442133505,7.0911,141.03,140.96,18.26441311]
[1720442133712,7.0911,141.03,140.97,8.5114771]
[1720442133913,33.9,141.06,140.98,7.0929]
[1720442134108,7.0907,141.03,140.99,1.41797592]
[1720442134308,20.0,141.02,140.99,1.41797592]
[1720442134822,7.0903,141.04,140.99,1.41797592]
[1720442135793,7.0898,141.05,141.0,7.2621]
[1720442135992,7.0898,141.05,141.0,0.17]
[1720442137108,7.0908,141.03,140.98,17.7328]
[1720442138511,7.0913,141.02,140.97,7.2635]
[1720442138713,7.0913,141.02,140.98,0.17]
[1720442139088,7.0908,141.03,140.98,0.17]
[1720442139401,8.50333195,141.04,140.98,7.2631]
[1720442139601,1.41303195,141.04,140.99,7.0926]
[1720442139800,7.0898,141.05,141.0,7.262]
[1720442140112,7.0893,141.06,141.01,7.0916]
[1720442140297,20.0,141.05,141.01,7.0916]
[1720442141623,27.0897,141.05,140.99,17.7312]
[1720442141800,1.41303195,141.04,140.98,0.17]
[1720442142328,7.0903,141.04,140.98,17.7328]
[1720442142497,7.09,141.05,140.99,7.0925]
[1720442142697,7.0918,141.01,140.97,0.17]
[1720442142900,7.0914,141.02,140.97,0.17]
[1720442143196,7.0927,140.99,140.96,16.846]
[1720442143415,7.0923,141.0,140.96,16.846]
[1720442143614,7.0917,141.01,140.96,16.846]
[1720442143800,7.0917,141.01,140.96,23.9401]
[1720442144132,7.093,140.99,140.95,6.3372]
[1720442144298,7.0925,141.0,140.95,6.3372]
[1720442145420,7.0929,140.99,140.95,6.3372]
[1720442145607,1.41303195,140.99,140.92,16.7807]
[1720442145803,21.41303195,141.01,140.92,16.7807]
[1720442146213,7.0945,140.96,140.92,16.7807]
[1720442146408,7.0948,140.95,140.92,16.7807]
[1720442146605,8.50853195,140.94,140.91,6.4346]
[1720442146908,1.41303195,140.94,140.89,23.5882]
[1720442147314,7.0943,140.96,140.9,7.0969]
[1720442147623,8.50683195,140.97,140.91,7.0964]
[1720442147816,27.0942,140.96,140.91,7.0964]
[1720442148124,27.0942,140.96,140.9,7.0971]
[1720442148513,8.50783195,140.95,140.9,7.0971]
[1720442148717,8.50783195,140.95,140.89,41.3323]
[1720442149021,7.0952,140.94,140.89,41.3323]
[1720442149519,7.0962,140.92,140.87,6.3995]
[1720442149701,1.41303195,140.93,140.87,6.3995]
[1720442149702,7.0969,140.91,140.87,6.3995]
[1720442150020,7.0963,140.92,140.87,6.3995]
[1720442150328,1.41303195,140.93,140.87,6.3995]
[1720442150495,28.50873195,140.93,140.88,7.098]
[1720442150813,8.50873195,140.93,140.88,7.098]
[1720442151698,7.097,140.91,140.86,15.4847]
[1720442151922,1.41303195,140.9,140.86,17.7469]
[1720442152112,1.41303195,140.9,140.84,13.6775]
[1720442152319,55.31303195,140.93,140.84,13.6775]
[1720442152617,1.41303195,140.92,140.84,13.6775]
[1720442153124,19.15373195,140.92,140.84,6.5775]
[1720442153305,7.0984,140.88,140.83,17.7508]
[1720442153505,7.0984,140.88,140.83,24.8513]
[1720442154212,1.41303195,140.87,140.82,16.6383]
[1720442154523,1.41303195,140.86,140.8,24.8565]
[1720442154823,7.1001,140.85,140.8,17.7546]
[1720442155208,7.0989,140.87,140.81,7.1013]
[1720442155412,21.41303195,140.86,140.81,7.1013]
[1720442155626,21.41303195,140.86,140.82,7.1012]
[1720442156003,21.41303195,140.86,140.81,7.1015]
[1720442156315,28.51233195,140.86,140.8,24.8566]
[1720442156624,21.41303195,140.86,140.78,29.4052]
[1720442156839,7.1009,140.83,140.78,29.4052]
[1720442158013,1.41303195,140.82,140.77,24.8626]
[1720442159008,7.1002,140.84,140.78,7.103]
[1720442159209,21.41303195,140.83,140.78,7.103]
[1720442159935,28.51393195,140.83,140.78,7.103]
[1720442160137,28.51393195,140.83,140.77,24.8625]
[1720442160718,21.41303195,140.83,140.76,7.1041]
[1720442160916,7.1025,140.8,140.74,31.0701]
[1720442161119,7.1025,140.8,140.75,7.1047]
[1720442161708,7.1019,140.81,140.74,23.965]
[1720442161932,7.1019,140.81,140.75,7.1044]
[1720442162128,1.41303195,140.82,140.77,7.1036]
[1720442162329,1.41303195,140.84,140.79,7.1026]
[1720442162510,8.51333195,140.84,140.79,7.1026]
[1720442162833,1.41303195,140.87,140.8,7.102]
[1720442163026,1.41303195,140.87,140.79,24.8595]
[1720442163027,7.0998,140.85,140.79,24.8595]
[1720442163240,1.41303195,140.84,140.79,24.8595]
[1720442163407,1.41303195,140.84,140.8,7.1022]
[1720442164115,7.0993,140.86,140.81,7.1016]
[1720442164328,21.41303195,140.85,140.8,7.1021]
[1720442164535,20.0,140.85,140.81,7.1017]
[1720442165029,7.1003,140.84,140.79,17.7568]
[1720442165617,8.51383195,140.83,140.78,7.1029]
[1720442165929,8.51433195,140.82,140.77,7.1036]
[1720442166631,7.1018,140.81,140.76,17.7596]
[1720442167035,7.1009,140.83,140.76,17.7596]
[1720442167226,7.1009,140.83,140.78,7.1032]
[1720442167427,8.51393195,140.83,140.78,7.1032]
[1720442167628,7.1009,140.83,140.78,7.1032]
[1720442167937,8.51343195,140.84,140.79,7.1026]
[1720442168125,20.0,140.83,140.79,7.1026]
[1720442168320,7.0999,140.85,140.8,7.1019]
[1720442168537,7.0999,140.85,140.79,7.1025]
[1720442168739,1.41303195,140.87,140.83,7.1002]
[1720442168916,1.41303195,140.88,140.83,7.1002]
[1720442169121,1.41303195,140.88,140.83,7.1006]
[1720442169937,8.51123195,140.88,140.83,7.1006]
[1720442170325,1.41303195,140.9,140.84,17.9198]
[1720442170526,1.41303195,140.93,140.8,40.4525]
[1720442170726,1.41303195,140.92,140.86,7.099]
[1720442170948,43.46521035,140.98,140.81,20.0]
[1720442170949,6.7437,140.97,140.88,7.0982]
[1720442171252,6.7437,140.97,140.9,7.0968]
[1720442171253,7.0943,140.96,140.9,7.0968]
[1720442171421,6.7437,140.97,140.87,6.4535]
[1720442171764,7.0964,140.92,140.87,6.2835]
[1720442171947,7.0958,140.93,140.87,31.1281]
[1720442172246,7.0952,140.94,140.89,7.0976]
[1720442172927,8.50733195,140.96,140.87,6.2835]
[1720442173133,1.41303195,140.97,140.88,20.17]
[1720442173333,1.41303195,140.99,140.91,17.7415]
[1720442173534,8.09703195,141.01,140.96,7.094]
[1720442173734,1.41303195,141.01,140.95,7.0945]
[1720442174135,7.0922,141.0,140.95,17.7363]
[1720442174335,8.50573195,140.99,140.93,7.0955]
[1720442174531,7.0932,140.98,140.92,7.266]
[1720442174732,8.50673195,140.97,140.92,17.7397]
[1720442174930,7.0957,140.93,140.87,6.2835]
[1720442175127,7.87413195,140.97,140.88,7.0977]
[1720442175128,7.0953,140.94,140.88,7.0977]
[1720442175328,7.0953,140.94,140.89,7.0976]
[1720442175527,7.0958,140.93,140.87,13.3819]
[1720442175959,1.41303195,140.92,140.85,34.2432]
[1720442176137,16.6582,140.94,140.83,6.6991]
[1720442176325,33.9,140.92,140.81,16.2327]
[1720442176525,21.41303195,140.91,140.81,16.2327]
[1720442176760,7.0978,140.89,140.83,7.1006]
[1720442176953,7.0987,140.87,140.81,23.3343]
[1720442177155,1.41303195,140.86,140.8,24.8572]
[1720442177332,8.51233195,140.86,140.8,24.8572]
[1720442177749,7.0983,140.88,140.82,7.1011]
[1720442178050,1.41303195,140.87,140.82,7.1011]
[1720442178350,8.51133195,140.88,140.82,7.1011]
[1720442178838,1.41303195,140.88,140.83,7.1004]
[1720442179040,21.41303195,140.9,140.83,7.1004]
[1720442179239,8.51093195,140.89,140.83,7.1004]
[1720442179971,8.51093195,140.89,140.84,7.1]
[1720442180150,1.41303195,140.89,140.84,7.1]
[1720442180351,7.0968,140.91,140.85,1.41364222]
[1720442180678,7.0963,140.92,140.87,7.0986]
[1720442180970,7.0963,140.92,140.88,1.41334118]
[1720442181757,20.0,140.91,140.88,1.41334118]
[1720442181956,16.6582,140.94,140.88,8.51144118]
[1720442182126,7.0948,140.95,140.89,8.51092208]
[1720442182334,7.0948,140.95,140.9,1.41312236]
[1720442182648,15.903,140.98,140.92,7.0961]
[1720442182853,7.0939,140.97,140.93,1.41282154]
[1720442183027,8.50693195,140.97,140.93,1.41282154]
[1720442183234,7.0939,140.97,140.93,1.41282154]
[1720442184024,7.0933,140.98,140.93,1.41282154]
[1720442184250,8.50633195,140.98,140.93,1.41282154]
[1720442184857,7.0933,140.98,140.93,7.0956]
[1720442185457,7.0937,140.97,140.92,0.17]
[1720442185643,7.0937,140.97,140.92,17.9102]